{"text_format":"1","workbook":"xlsx","n_sheets":4,"sheets":["Titre DPGF","DPGF BASE","DPGF VARIANTE","Feuil2"],"not_rendered":{"charts":0,"images":2,"macros":1,"external_links":0,"defined_names":34,"comments":0,"pivot_tables":0},"unopened":[],"bounds":{"document_bytes":16777216,"sheet_cells":100000,"rows_first":2000,"rows_last":500,"rows_between":2000,"halvings":0,"cell_chars":16384,"cell_head_chars":4096},"cells_cut":0,"cells_raw":0,"read":"whole","date_system":"1900"}

{"sheet":"Titre DPGF","index":0,"n_rows":0,"n_cols":0,"rows_kept":0,"cut":false,"hidden":false,"merged":[]}

{"sheet":"DPGF BASE","index":1,"n_rows":36,"n_cols":7,"rows_kept":36,"cut":false,"hidden":false,"merged":[[1,2,1,6],[2,2,2,6]]}
[]
[null,null,"DECOMPOSITION DU PRIX GLOBAL ET FORFAITAIRE"]
[null,null,"SOLUTION DE BASE : POMPAGE SIMPLE"]
[]
["rang","N° BPU","Désignation des travaux","Unité","P.U. (€)","Q","Total (€)"]
[null,null,"TRAVAUX DE REFECTION DU BASSIN D'ORAGE"]
[{"$error":"#REF!"}]
[{"$error":"#REF!"},1.01,"Installation de chantier et dossier d'exécution","Forfait",null,1,{"$f":"F8*E8","v":0}]
[null,1.02,"Nettoyage général  :\nDébroussaillage et arrachage de toute la végétation envahissante au niveau des ouvrages\nNettoyage et évacuation des détritus et dépôts en fond de bassin","Forfait",null,1,0]
[null,1.03,"Démolitions  :\nDémolition des voiles restant et évacuation\nDépose de toutes la tuyauterie restante inutile y compris calfeutrement étanche","Forfait",null,1,{"$f":"F10*E10","v":0}]
[null,1.04,"Reprise du collecteur d'arrivée des effluent en fonte (partie aérienne)  :\nLe collecteur fonte DN200 y compris coudes et pièces spéciales\nLa pose en encorbellement par accrochage sur le voile béton du bassin\nLes Massifs de scellement en béton sur le talus","Forfait",null,1,{"$f":"F11*E11","v":0}]
[null,1.05,"Mis en sécurité escalier et regards d'évacuations  :\nMise en place de garde corps acier galva.\nPose de caillebotis composites amovibles et verrouilables sur regards de vidange\nMis en place d'un portillon d'accès à la crinoline + marche palière","Forfait",null,1,{"$f":"F12*E12","v":0}]
[null,1.06,"Reprise forme de pente en fond de bassin  :\nCréation d'une chape lissée en forme de pente de 3.5 % vers le centre du bassin","Forfait",null,1,0]
[null,1.7,"Création d'un fosse de réception pour l'Hydro-éjecteur  :\nDémolition fond de dalle existante et terrassement\nRéalisation d'un puisard en béton armé de 55 cm de profondeur\nPose d'un bonde de fond avec évacuation vers le collecteur existant","Forfait",null,1,0]
[null,1.0900000000000001,"Plateforme de manœuvre  :\nPlateforme haute au niveau du haut du bassin pour mise en place potence\nPlateforme basse en béton armé au niveau du terrain naturel pour réception équipement\nVoiles latéral de maintien des terres\nY compris enduit de finition et protection parties enterrées\nGarde corps acier galva. de sécurité sur plateforme haute","Forfait",null,1,{"$f":"F15*E15","v":0}]
[null,1.1000000000000001,"Potence  :\nPotence sur fut avec palan manuel 500 kg\nScellement et fixation sur plateforme haute","Forfait",null,1,0]
[null,1.1100000000000001,"Hydro-éjecteur  :\nHydro-éjecteur type aérateur venturi sur pied d'assise 500 m³/h - 18 kW y compris aspiration d'air et tuyère de mélange air- eau\nBarres de guidage et support de barre, chaines manilles, etc.\nRaccordement à l'armoire de commande en chemin de câbles","Forfait",null,1,{"$f":"F17*E17","v":0}]
[null,1.1200000000000001,"Armoire de commande et télésurveillance  :\nArmoire de commande 1 pompe comprenant la protection thermique, l'asservissement aux mesures de niveau, un commutateur auto/arrêt/manu, voyant défaut, voltmètre compteur horaire, ampèremètre, prise 230v, réservation télétransmission\nSystème de télésurveillance type SOFFREL S550 qui devra être connecté au système de gestion technique centralisé existant par communication GSM.\nLe poste de télésurveillance reprendra toutes les télémesures, télésignalisation, télécomptage disponibles dans les\nstations de pompage pour les unités pompage.\nLe système sera évolutif avec possibilité d'ajouter des cartes supplémentaires.","Forfait",null,1,0]
[null,1.1299999999999999,"Sonde US  :\nSonde à ultrason permettant de contrôler le niveau d'eau dans le bassin pour asservissement des hydroéjecteurs et d'avoir un retour quantitatif\nRaccordement à l'armoire de commande en chemin de câbles","Forfait",null,1,{"$f":"F19*E19","v":0}]
[null,1.1399999999999999,"Tranchée et câblages\nRéalisation de la tranchée et du câblage de puissance et de télétransmission du local au point de livraison fournisseur","Forfait",null,1,{"$f":"F20*E20","v":0}]
[null,1.1499999999999999,"Réhabilitation local existant et clôture\nDépose armoire de commande\nMise en place éclairage par néon\nRemplacement menuiserie existante (fenêtre 100x130 cm)\nMise en place serrure sur porte\nRemplacement des éléments manquant de la clôture en panneau","Forfait",null,1,0]
[null,1.1599999999999999,"Création de regard sur la conduite de retour gravitaire\nRéalisation des sondages pour recherce de réseaux y compris remblaiement et réfection à l'identique (10 unité)\nCréation de regard de visite Ø800 BA toutes hauteurs, comprenant les terrassements, la fourniture et pose des élèments préfabriqués, le tampon de fermeture articulé D400 Ø600mm, le remblaiement et réfection à l'identique (6 unités)\nLes plus values éventuelles pour la mise en place de regard sur collecteur existant (découpe, bouchonnage, etc.)","Forfait",null,1,{"$f":"F22*E22","v":0}]
[null,1.17,"Mise en service essais réglages et récolement","Forfait",null,1,{"$f":"F23*E23","v":0}]
[]
[{"$error":"#REF!"}]
[{"$error":"#REF!"},null,"TOTAL 1",null,null,null,{"$f":"SUBTOTAL(9,G6:G25)","v":0}]
[{"$error":"#REF!"}]
[]
[{"$error":"#REF!"},null,"MONTANT TOTAL DES TRAVAUX H.T. ",null,null,null,{"$f":"SUBTOTAL(9,G6:G27)","v":0}]
[null,null,"TVA",0.2,null,null,{"$f":"G29*D30","v":0}]
[null,null,"MONTANT TOTAL DES TRAVAUX T.T.C.",null,null,null,{"$f":"G30+G29","v":0}]
[{"$error":"#REF!"}]
[{"$error":"#REF!"}]
[{"$error":"#REF!"}]
[{"$error":"#REF!"}]
[null,null,null,null,null,"FIN"]

{"sheet":"DPGF VARIANTE","index":2,"n_rows":36,"n_cols":7,"rows_kept":36,"cut":false,"hidden":false,"merged":[[1,2,1,6],[2,2,2,6]]}
[]
[null,null,"DECOMPOSITION DU PRIX GLOBAL ET FORFAITAIRE"]
[null,null,"SOLUTION VARIANTE 1 : DOUBLE POMPAGE"]
[]
["rang","N° BPU","Désignation des travaux","Unité","P.U. (€)","Q","Total (€)"]
[null,null,"TRAVAUX DE REFECTION DU BASSIN D'ORAGE"]
[{"$error":"#REF!"}]
[{"$error":"#REF!"},1.01,"Installation de chantier et dossier d'exécution","Forfait",null,1,{"$f":"F8*E8","v":0}]
[null,1.02,"Nettoyage général  :\nDébroussaillage et arrachage de toute la végétation envahissante au niveau des ouvrages\nNettoyage et évacuation des détritus et dépôts en fond de bassin","Forfait",null,1,0]
[null,1.03,"Démolitions  :\nDémolition des voiles restant et évacuation\nDépose de toutes la tuyauterie restante inutile y compris calfeutrement étanche","Forfait",null,1,0]
[null,1.04,"Reprise du collecteur d'arrivée des effluent en fonte (partie aérienne)  :\nLe collecteur fonte DN200 y compris coudes et pièces spéciales\nLa pose en encorbellement par accrochage sur le voile béton du bassin\nLes Massifs de scellement en béton sur le talus","Forfait",null,1,0]
[null,1.05,"Mis en sécurité escalier et regards d'évacuations  :\nMise en place de garde corps acier galva.\nPose de caillebotis composites amovibles et verrouilables sur regards de vidange\nMis en place d'un portillon d'accès à la crinoline + marche palière","Forfait",null,1,0]
[null,1.06,"Reprise forme de pente en fond de bassin  :\nCréation d'une chape lissée en forme de pente de 3.5 % vers le centre du bassin","Forfait",null,1,0]
[null,"V1.7","Création d'un fosse de réception pour l'Hydro-éjecteur  :\nDémolition fond de dalle existante et terrassement\nRéalisation d'un puisard en béton armé de 55 cm de profondeur\nPose d'un bonde de fond avec évacuation vers le collecteur existant dont une évacuation vers l'évacuation centrale","Forfait",null,2,0]
[null,"V1.09","Plateforme de manœuvre  :\nPlateforme haute au niveau du haut du bassin pour mise en place potence\nPlateforme basse en béton armé au niveau du terrain naturel pour réception équipement\nVoiles latéral de maintien des terres\nY compris enduit de finition et protection parties enterrées\nGarde corps acier galva. de sécurité sur plateforme haute","Forfait",null,2,0]
[null,"V1.18","Escalier d'accès galva. pour la seconde plateforme :\nCréation d'un escalier droit en acier galvanisé avec gardes corps :\n - nombre de marches : 19\n - hauteur à monter : 3.2 m\n - largeur 90cm\n - pallier d'arrivée de 1x1 en caillebotis avec garde corps\nFixation sur voile existant et ancrage béton en pied.","Forfait",null,1,0]
[null,"V1.10","Potence  :\nPotence sur fut avec palan manuel 300 kg\nScellement et fixation sur plateforme haute","Forfait",null,2,0]
[null,"V1.11","Hydro-éjecteur  :\nHydro-éjecteur type aérateur venturi sur pied d'assise 240 m³/h - 9 kW y compris aspiration d'air et tuyère de mélange air- eau\nBarres de guidage et support de barre, chaines manilles, etc.\nRaccordement à l'armoire de commande en chemin de câbles","Forfait",null,2,0]
[null,"V1.12","Armoire de commande et télésurveillance  :\nArmoire de commande 2 pompes comprenant (par pompe) :\nla protection thermique, l'asservissement aux mesures de niveau, un commutateur auto/arrêt/manu, voyant défaut, voltmètre compteur horaire, ampèremètre, \nMise en place : prise 230v, réservation télétransmission\nSystème de télésurveillance type SOFFREL S550 qui devra être connecté au système de gestion technique centralisé existant par communication GSM.\nLe poste de télésurveillance reprendra toutes les télémesures, télésignalisation, télécomptage disponibles dans les\nstations de pompage pour les unités pompage.\nLe système sera évolutif avec possibilité d'ajouter des cartes supplémentaires.","Forfait",null,1,0]
[null,1.1299999999999999,"Sonde US  :\nSonde à ultrason permettant de contrôler le niveau d'eau dans le bassin pour asservissement des hydroéjecteurs et d'avoir un retour quantitatif\nRaccordement à l'armoire de commande en chemin de câbles","Forfait",null,1,0]
[null,1.1399999999999999,"Tranchée et câblages\nRéalisation de la tranchée et du câblage de puissance et de télétransmission du local au point de livraison fournisseur","Forfait",null,1,0]
[null,1.1499999999999999,"Réhabilitation local existant et clôture\nDépose armoire de commande\nMise en place éclairage par néon\nRemplacement menuiserie existante (fenêtre 100x130 cm)\nMise en place serrure sur porte\nRemplacement des éléments manquant de la clôture en panneau","Forfait",null,1,0]
[null,1.1599999999999999,"Création de regard sur la conduite de retour gravitaire\nRéalisation des sondages pour recherce de réseaux y compris remblaiement et réfection à l'identique (10 unité)\nCréation de regard de visite Ø800 BA toutes hauteurs, comprenant les terrassements, la fourniture et pose des élèments préfabriqués, le tampon de fermeture articulé D400 Ø600mm, le remblaiement et réfection à l'identique (6 unités)\nLes plus values éventuelles pour la mise en place de regard sur collecteur existant (découpe, bouchonnage, etc.)","Forfait",null,1,0]
[null,1.17,"Mise en service essais réglages et récolement","Forfait",null,1,0]
[{"$error":"#REF!"}]
[{"$error":"#REF!"},null,"TOTAL 1",null,null,null,{"$f":"SUBTOTAL(9,G6:G25)","v":0}]
[{"$error":"#REF!"}]
[]
[{"$error":"#REF!"},null,"MONTANT TOTAL DES TRAVAUX H.T. (variante)",null,null,null,{"$f":"SUBTOTAL(9,G6:G27)","v":0}]
[null,null,"TVA",0.2,null,null,{"$f":"G29*D30","v":0}]
[null,null,"MONTANT TOTAL DES TRAVAUX T.T.C.",null,null,null,{"$f":"G30+G29","v":0}]
[{"$error":"#REF!"}]
[{"$error":"#REF!"}]
[]
[{"$error":"#REF!"}]
[null,null,null,null,null,"FIN"]

{"sheet":"Feuil2","index":3,"n_rows":0,"n_cols":0,"rows_kept":0,"cut":false,"hidden":false,"merged":[]}